fUSD/lending_fUSD_20250826
["ID","MTS","AMOUNT","RATE_DAILY","PERIOD"]
[381486714,1756230757879,-1520.2,0.00028767,5]
[381486715,1756230757890,-870.39,0.00028767,5]
[381486716,1756230757900,-759.54,0.00028767,5]
[381486717,1756230757911,-579.76,0.00028767,5]
[381486718,1756230757922,-2000.0,0.00028767,30]
[381486719,1756230757934,-1483.54,0.00028767,5]
[381486720,1756230757943,-513.44,0.00028767,5]
[381486721,1756230757953,-400.0,0.00028767,5]
[381486722,1756230757962,-1173.63,0.00028767,5]
[381486723,1756230757971,-400.0,0.00028767,5]
[381486724,1756230757981,-646.83,0.00028767,5]
[381486725,1756230757991,-781.98,0.00028767,5]
[381486726,1756230758000,-400.0,0.00028767,5]
[381486727,1756230758012,-483.54,0.00028767,5]
[381486728,1756230758022,-400.0,0.00028767,5]
[381486729,1756230758031,-465.8,0.00028767,5]
[381486730,1756230758042,-889.4,0.00028767,5]
[381486731,1756230758051,-779.46,0.00028767,5]
[381486732,1756230758061,-511.6,0.00028767,5]
[381486733,1756230758071,-400.0,0.00028767,5]
[381486734,1756230758081,-473.06,0.00028767,5]
[381486735,1756230758090,-491.1,0.00028767,5]
[381486736,1756230758100,-508.66,0.00028767,5]
[381486737,1756230758110,-531.34,0.00028767,5]
[381486738,1756230758119,-400.0,0.00028767,5]
[381486739,1756230758129,-696.35,0.00028767,5]
[381486740,1756230758139,-400.0,0.00028767,5]
[381486741,1756230758153,-801.56,0.00028767,5]
[381486742,1756230758164,-400.0,0.00028767,5]
[381486743,1756230758174,-400.0,0.00028767,5]
[381486744,1756230758183,-400.0,0.00028767,5]
[381486745,1756230758193,-400.0,0.00028767,5]
[381486746,1756230758202,-1420.8,0.00028767,5]
[381486747,1756230758212,-771.21,0.00028767,5]
[381486748,1756230758222,-489.59,0.00028767,5]
[381486749,1756230758231,-755.04,0.00028767,5]
[381486750,1756230758241,-400.0,0.00028767,5]
[381486751,1756230758250,-1769.58,0.00028767,5]
[381486752,1756230758261,-681.58,0.00028767,5]
[381486753,1756230758271,-400.0,0.00028767,5]
[381486754,1756230758280,-606.73,0.00028767,5]
[381486755,1756230758289,-606.73,0.00028767,5]
[381486756,1756230758299,-821.91,0.00028767,5]
[381486757,1756230758308,-837.01,0.00028767,5]
[381486758,1756230758318,-1166.43,0.00028767,5]
[381486759,1756230758327,-400.0,0.00028767,5]
[381486760,1756230758337,-400.0,0.00028767,5]
[381486761,1756230758346,-400.0,0.00028767,5]
[381486762,1756230758356,-799.6,0.00028767,5]
[381486763,1756230758365,-400.0,0.00028767,5]
[381486764,1756230758374,-1010.62,0.00028767,5]
[381486765,1756230758384,-690.36,0.00028767,5]
[381486766,1756230758394,-400.0,0.00028767,5]
[381486767,1756230758404,-637.61,0.00028767,5]
[381486768,1756230758413,-1281.24,0.00028767,5]
[381486769,1756230758424,-1590.4,0.00028767,5]
[381486770,1756230758433,-1064.68,0.00028767,5]
[381486771,1756230758443,-1271.37,0.00028767,5]
[381486772,1756230758452,-885.76,0.00028767,5]
[381486773,1756230758463,-491.41,0.00028767,5]
[381486774,1756230758473,-1493.75,0.00028767,5]
[381486775,1756230758483,-1336.69,0.00028767,5]
[381486776,1756230758492,-967.08,0.00028767,5]
[381486777,1756230758501,-408.42,0.00028767,5]
[381486778,1756230758512,-418.99,0.00028767,5]
[381486779,1756230758522,-917.22,0.00028767,5]
[381486780,1756230758531,-531.19,0.00028767,5]
[381486781,1756230758541,-1433.07,0.00028767,5]
[381486782,1756230758550,-400.0,0.00028767,5]
[381486783,1756230758560,-570.95,0.00028767,5]
[381486784,1756230758569,-903.82,0.00028767,5]
[381486785,1756230758579,-1558.37,0.00028767,5]
[381486786,1756230758588,-550.9,0.00028767,5]
[381486787,1756230758597,-329.69003808,0.00028767,5]
[381486788,1756230758711,-400.0,0.00028767,5]
[381486789,1756230758720,-431.66,0.00028767,5]
[381486790,1756230758729,-664.06,0.00028767,5]
[381486791,1756230758738,-400.0,0.00028767,5]
[381486792,1756230758749,-558.64,0.00028767,5]
[381486793,1756230758758,-609.04,0.00028767,5]
[381486794,1756230758767,-774.95,0.00028767,5]
[381486795,1756230758776,-502.72,0.00028767,5]
[381486796,1756230758784,-839.6,0.00028767,5]
[381486797,1756230758793,-697.46,0.00028767,5]
[381486798,1756230758802,-968.44,0.00028767,5]
[381486799,1756230758812,-1276.22,0.00028767,5]
[381486800,1756230758822,-1172.64,0.00028767,5]
[381486801,1756230758831,-1114.22,0.00028767,5]
[381486802,1756230758840,-688.1,0.00028767,5]
[381486803,1756230758850,-571.99,0.00028767,5]
[381486804,1756230758860,-400.0,0.00028767,5]
[381486805,1756230758870,-509.97,0.00028767,5]
[381486806,1756230758883,-400.0,0.00028767,5]
[381486807,1756230758894,-400.0,0.00028767,5]
[381486808,1756230758904,-580.72,0.00028767,5]
[381486809,1756230758913,-640.51,0.00028767,5]
[381486810,1756230758922,-403.41,0.00028767,5]
[381486811,1756230758931,-821.79,0.00028767,5]
[381486812,1756230758940,-400.0,0.00028767,5]
[381486813,1756230758950,-400.0,0.00028767,5]
[381486814,1756230758959,-1039.88,0.00028767,5]
[381486815,1756230758968,-839.24,0.00028767,5]
[381486816,1756230758978,-417.78,0.00028767,5]
[381486817,1756230758987,-837.82,0.00028767,5]
[381486818,1756230758996,-352.64199601,0.00028767,5]
[381486819,1756230759006,-400.0,0.00028767,5]
[381486820,1756230759015,-400.0,0.00028767,5]
[381486821,1756230759025,-400.0,0.00028767,5]
[381486822,1756230759034,-1270.77,0.00028767,5]
[381486823,1756230759043,-400.0,0.00028767,5]
[381486824,1756230759053,-400.0,0.00028767,5]
[381486825,1756230759062,-400.0,0.00028767,5]
[381486826,1756230759071,-895.98,0.00028767,5]
[381486827,1756230759081,-502.08,0.00028767,5]
[381486828,1756230759091,-598.04,0.00028767,5]
[381486829,1756230759100,-400.0,0.00028767,5]
[381486830,1756230759109,-865.23,0.00028767,5]
[381486831,1756230759118,-400.0,0.00028767,5]
[381486832,1756230759127,-518.54,0.00028767,5]
[381486833,1756230759137,-522.21,0.00028767,5]
[381486834,1756230759146,-400.0,0.00028767,5]
[381486835,1756230759155,-848.23,0.00028767,5]
[381486836,1756230759165,-422.68,0.00028767,5]
[381486837,1756230759174,-528.98,0.00028767,5]
[381486838,1756230759183,-963.39,0.00028767,5]
[381486839,1756230759193,-728.84,0.00028767,5]
[381486840,1756230759202,-400.0,0.00028767,5]
[381486841,1756230759211,-400.0,0.00028767,5]
[381486842,1756230759221,-400.0,0.00028767,5]
[381486843,1756230759231,-618.88,0.00028767,5]
[381486844,1756230759240,-602.44392,0.00028767,5]
[381486845,1756230759249,-957.51,0.00028767,5]
[381486846,1756230759261,-461.75,0.00028767,5]
[381486847,1756230759270,-594.47,0.00028767,5]
[381486848,1756230759280,-1567.09,0.00028767,5]
[381486849,1756230759291,-503.53,0.00028767,5]
[381486850,1756230759301,-400.0,0.00028767,5]
[381486851,1756230759311,-400.0,0.00028767,5]
[381486852,1756230759321,-400.0,0.00028767,5]
[381486853,1756230759331,-1089.76,0.00028767,5]
[381486854,1756230759341,-1276.92,0.00028767,5]
[381486855,1756230759351,-674.18,0.00028767,5]
[381486856,1756230759360,-1533.69,0.00028767,5]
[381486857,1756230759369,-817.0,0.00028767,5]
[381486858,1756230759380,-294.04399951,0.00028767,5]
[381486859,1756230759390,-400.0,0.00028767,5]
[381486860,1756230759399,-400.0,0.00028767,5]
[381486861,1756230759409,-676.42,0.00028767,5]
[381486862,1756230759419,-400.0,0.00028767,5]
[381486863,1756230759429,-1531.09,0.00028767,5]
[381486864,1756230759439,-400.0,0.00028767,5]
[381486865,1756230759448,-1459.11,0.00028767,5]
[381486866,1756230759457,-622.731684,0.00028767,5]
[381486867,1756230759467,-400.0,0.00028767,5]
[381486868,1756230759476,-558.77,0.00028767,5]
[381486869,1756230759486,-400.0,0.00028767,5]
[381486870,1756230759496,-627.47,0.00028767,5]
[381486871,1756230759505,-400.0,0.00028767,5]
[381486872,1756230759514,-579.77,0.00028767,5]
[381486873,1756230759524,-1440.73,0.00028767,5]
[381486874,1756230759533,-400.0,0.00028767,5]
[381486875,1756230759542,-1242.42,0.00028767,5]
[381486876,1756230759554,-400.0,0.00028767,5]
[381486877,1756230759563,-1425.56941,0.00028767,5]
[381486878,1756230759572,-1203.37,0.00028767,5]
[381486879,1756230759581,-746.88,0.00028767,5]
[381486880,1756230759590,-400.0,0.00028767,5]
[381486881,1756230759599,-400.0,0.00028767,5]
[381486882,1756230759607,-153.414316,0.00028767,5]
[381486883,1756230759617,-400.0,0.00028767,5]
[381486884,1756230759628,-1223.38,0.00028767,5]
[381486885,1756230759638,-1148.42,0.00028767,5]
[381486886,1756230759647,-400.0,0.00028767,5]
[381486887,1756230759656,-1932.27,0.00028767,5]
[381486888,1756230759665,-771.37,0.00028767,5]
[381486889,1756230759680,-671.24,0.00028767,5]
[381486890,1756230759689,-400.0,0.00028767,5]
[381486891,1756230759698,-400.0,0.00028767,5]
[381486892,1756230759708,-669.66,0.00028767,5]
[381486893,1756230759718,-1913.94,0.00028767,5]
[381486894,1756230759727,-947.84,0.00028767,5]
[381486895,1756230759737,-382.09372206,0.00028767,5]
[381486896,1756230759747,-739.95,0.00028767,5]
[381486897,1756230759758,-400.0,0.00028767,5]
[381486898,1756230759767,-400.0,0.00028767,5]
[381486899,1756230759776,-400.0,0.00028767,5]
[381486900,1756230759785,-400.0,0.00028767,5]
[381486901,1756230759795,-400.0,0.00028767,5]
[381486902,1756230759804,-691.88,0.00028767,5]
[381486903,1756230759813,-400.0,0.00028767,5]
[381486904,1756230759823,-939.77,0.00028767,5]
[381486905,1756230759833,-616.51,0.00028767,5]
[381486906,1756230759844,-641.49,0.00028767,5]
[381486907,1756230759857,-400.0,0.00028767,5]
[381486908,1756230759866,-400.0,0.00028767,5]
[381486909,1756230759875,-1152.08,0.00028767,5]
[381486910,1756230759885,-400.0,0.00028767,5]
[381486911,1756230759893,-400.0,0.00028767,5]
[381486912,1756230759903,-638.75,0.00028767,5]
[381486913,1756230759911,-559.5,0.00028767,5]
[381486914,1756230759921,-421.67,0.00028767,5]
[381486915,1756230759930,-1044.69,0.00028767,5]
[381486916,1756230759939,-400.0,0.00028767,5]
[381486917,1756230759949,-599.16,0.00028767,5]
[381486918,1756230759964,-605.74,0.00028767,5]
[381486919,1756230759973,-400.0,0.00028767,5]
[381486920,1756230759982,-510.20988957,0.00028767,5]
[381486921,1756230759991,-400.0,0.00028767,5]
[381486922,1756230760000,-838.66,0.00028767,5]
[381486923,1756230760011,-400.0,0.00028767,5]
[381486924,1756230760022,-887.39,0.00028767,5]
[381486925,1756230760035,-655.13,0.00028767,5]
[381486926,1756230760044,-941.57,0.00028767,5]
[381486927,1756230760055,-471.57,0.00028767,5]
[381486928,1756230760065,-400.0,0.00028767,5]
[381486929,1756230760074,-499.66,0.00028767,5]
[381486930,1756230760085,-1079.39,0.00028767,5]
[381486931,1756230760095,-890.980882,0.00028767,5]
[381486932,1756230760104,-401.9169033,0.00028767,5]
[381486933,1756230760112,-400.0,0.00028767,5]
[381486934,1756230760121,-1594.17,0.00028767,5]
[381486935,1756230760130,-1159.56,0.00028767,5]
[381486936,1756230760139,-892.37,0.00028767,5]
[381486937,1756230760148,-773.23,0.00028767,5]
[381486938,1756230760157,-1157.25,0.00028767,5]
[381486939,1756230760166,-686.12,0.00028767,5]
[381486940,1756230760175,-248.52405442,0.00028767,5]
[381486941,1756230760184,-1000.25,0.00028767,5]
[381486942,1756230760193,-1270.92,0.00028767,5]
[381486943,1756230760202,-641.35,0.00028767,5]
[381486944,1756230760212,-400.0,0.00028767,5]
[381486945,1756230760221,-547.19,0.00028767,5]
[381486946,1756230760230,-1790.82,0.00028767,5]
[381486947,1756230760239,-1052.08,0.00028767,5]
[381486948,1756230760249,-400.0,0.00028767,5]
[381486949,1756230760259,-400.0,0.00028767,5]
[381486950,1756230760268,-554.83,0.00028767,5]
[381486951,1756230760278,-438.05,0.00028767,5]
[381486952,1756230760287,-400.0,0.00028767,5]
[381486953,1756230760296,-1943.28,0.00028767,5]
[381486954,1756230760306,-746.03,0.00028767,5]
[381486955,1756230760315,-400.0,0.00028767,5]
[381486956,1756230760326,-400.0,0.00028767,5]
[381486957,1756230760335,-518.13,0.00028767,5]
[381486958,1756230760344,-400.0,0.00028767,5]
[381486959,1756230760353,-785.98,0.00028767,5]
[381486960,1756230760362,-520.03813205,0.00028767,5]
[381486961,1756230760372,-993.89,0.00028767,5]
[381486962,1756230760382,-818.48,0.00028767,5]
[381486963,1756230760391,-400.0,0.00028767,5]
[381486964,1756230760401,-1104.44,0.00028767,5]
[381486965,1756230760410,-1314.35,0.00028767,5]
[381486966,1756230760419,-1147.4,0.00028767,5]
[381486967,1756230760429,-400.0,0.00028767,5]
[381486968,1756230760438,-400.0,0.00028767,5]
[381486969,1756230760447,-494.04,0.00028767,5]
[381486970,1756230760457,-400.0,0.00028767,5]
[381486971,1756230760466,-762.17,0.00028767,5]
[381486972,1756230760475,-1207.12,0.00028767,5]
[381486973,1756230760484,-400.0,0.00028767,5]
[381486974,1756230760494,-803.64,0.00028767,5]
[381486975,1756230760505,-400.0,0.00028767,5]
[381486976,1756230760514,-479.74,0.00028767,5]
[381486977,1756230760523,-577.41,0.00028767,5]
[381486978,1756230760533,-1365.31,0.00028767,5]
[381486979,1756230760542,-796.06,0.00028767,5]
[381486980,1756230760552,-596.98,0.00028767,5]
[381486981,1756230760561,-649.76,0.00028767,5]
[381486982,1756230760570,-400.0,0.00028767,5]
[381486983,1756230760579,-865.97,0.00028767,5]
[381486984,1756230760589,-1461.95,0.00028767,5]
[381486985,1756230760598,-679.44,0.00028767,5]
[381486986,1756230760607,-1811.76,0.00028767,5]
[381486987,1756230760617,-400.0,0.00028767,5]
[381486988,1756230760626,-400.0,0.00028767,5]
[381486989,1756230760635,-1319.63,0.00028767,5]
[381486990,1756230760644,-209.28671347,0.00028767,5]
[381486991,1756230760653,-439.96,0.00028767,5]
[381486992,1756230760662,-400.0,0.00028767,5]
[381486993,1756230760675,-400.0,0.00028767,5]
[381486994,1756230760684,-1057.17,0.00028767,5]
[381486995,1756230760694,-400.0,0.00028767,5]
[381486996,1756230760703,-400.0,0.00028767,5]
[381486997,1756230760714,-400.0,0.00028767,5]
[381486998,1756230760723,-736.79,0.00028767,5]
[381486999,1756230760732,-747.22,0.00028767,5]
[381487000,1756230760741,-1451.65,0.00028767,5]
[381487001,1756230760752,-1376.31,0.00028767,5]
[381487002,1756230760762,-1514.02,0.00028767,5]
[381487003,1756230760771,-449.86,0.00028767,5]
[381487004,1756230760780,-1074.86,0.00028767,5]
[381487005,1756230760788,-794.3,0.00028767,5]
[381487006,1756230760798,-769.79,0.00028767,5]
[381487007,1756230760807,-400.0,0.00028767,5]
[381487008,1756230760816,-1162.07,0.00028767,5]
[381487009,1756230760825,-934.37,0.00028767,5]
[381487010,1756230760834,-1986.93,0.00028767,5]
[381487011,1756230760844,-708.52,0.00028767,5]
[381487012,1756230760853,-1255.96,0.00028767,5]
[381487013,1756230760863,-1235.73,0.00028767,5]
[381487014,1756230760871,-1339.03,0.00028767,5]
[381487015,1756230760880,-400.0,0.00028767,5]
[381487016,1756230760889,-400.0,0.00028767,5]
[381487017,1756230760898,-826.32,0.00028767,5]
[381487018,1756230760908,-817.2,0.00028767,5]
[381487019,1756230760916,-1322.4,0.00028767,5]
[381487020,1756230760926,-621.44,0.00028767,5]
[381487021,1756230760935,-1563.34,0.00028767,5]
[381487022,1756230760944,-400.0,0.00028767,5]
[381487023,1756230760953,-1226.73,0.00028767,5]
[381487024,1756230760963,-567.37,0.00028767,5]
[381487025,1756230760972,-1033.23,0.00028767,5]
[381487026,1756230760981,-400.0,0.00028767,5]
[381487027,1756230760990,-469.42,0.00028767,5]
[381487028,1756230760999,-583.42,0.00028767,5]
[381487029,1756230761009,-400.0,0.00028767,5]
[381487030,1756230761018,-1617.06,0.00028767,5]
[381487031,1756230761027,-400.0,0.00028767,5]
[381487032,1756230761036,-496.78,0.00028767,5]
[381487033,1756230761045,-751.23,0.00028767,5]
[381487034,1756230761054,-571.51,0.00028767,5]
[381487035,1756230761063,-740.82,0.00028767,5]
[381487036,1756230761072,-1057.52,0.00028767,5]
[381487037,1756230761081,-434.35,0.00028767,5]
[381487038,1756230761091,-400.0,0.00028767,5]
[381487039,1756230761100,-752.52,0.00028767,5]
[381487040,1756230761109,-1288.56,0.00028767,5]
[381487041,1756230761117,-400.0,0.00028767,5]
[381487042,1756230761126,-1749.23,0.00028767,5]
[381487043,1756230761135,-400.0,0.00028767,5]
[381487044,1756230761144,-1512.96,0.00028767,5]
[381487045,1756230761153,-1076.61,0.00028767,5]
[381487046,1756230761162,-400.0,0.00028767,5]
[381487047,1756230761171,-4628.51,0.00028767,5]
[381487048,1756230761180,-485.34,0.00028767,5]
[381487049,1756230761190,-546.54,0.00028767,5]
[381487050,1756230761198,-1309.38,0.00028767,5]
[381487051,1756230761207,-875.95,0.00028767,5]
[381487052,1756230761216,-431.25,0.00028767,5]
[381487053,1756230761226,-400.0,0.00028767,5]
[381487054,1756230761236,-1567.59,0.00028767,5]
[381487055,1756230761245,-2458.03,0.00028767,5]
[381487056,1756230761255,-1637.37,0.00028767,5]
[381487057,1756230761264,-400.0,0.00028767,5]
[381487058,1756230761273,-875.76,0.00028767,5]
[381487059,1756230761282,-805.91,0.00028767,5]
[381487060,1756230761291,-1335.44,0.00028767,5]
[381487061,1756230761300,-813.45,0.00028767,5]
[381487062,1756230761309,-400.0,0.00028767,5]
[381487063,1756230761318,-400.0,0.00028767,5]
[381487064,1756230761327,-776.37,0.00028767,5]
[381487065,1756230761336,-440.79,0.00028767,5]
[381487066,1756230761345,-400.0,0.00028767,5]
[381487067,1756230761354,-1213.81,0.00028767,5]
[381487068,1756230761363,-937.37,0.00028767,5]
[381487069,1756230761372,-686.49,0.00028767,5]
[381487070,1756230761383,-400.0,0.00028767,5]
[381487071,1756230761392,-713.94,0.00028767,5]
[381487072,1756230761402,-862.64,0.00028767,5]
[381487073,1756230761410,-922.13,0.00028767,5]
[381487074,1756230761419,-400.0,0.00028767,5]
[381487075,1756230761428,-842.8,0.00028767,5]
[381487076,1756230761437,-400.0,0.00028767,5]
[381487077,1756230761446,-1109.71,0.00028767,5]
[381487078,1756230761456,-400.0,0.00028767,5]
[381487079,1756230761466,-400.0,0.00028767,5]
[381487080,1756230761476,-400.0,0.00028767,5]
[381487081,1756230761486,-400.0,0.00028767,5]
[381487082,1756230761495,-537.55,0.00028767,5]
[381487083,1756230761505,-400.0,0.00028767,5]
[381487084,1756230761515,-996.63,0.00028767,5]
[381487085,1756230761525,-1260.94,0.00028767,5]
[381487086,1756230761536,-400.0,0.00028767,5]
[381487087,1756230761545,-400.0,0.00028767,5]
[381487088,1756230761555,-400.0,0.00028767,5]
[381487089,1756230761566,-410.02,0.00028767,5]
[381487090,1756230761577,-1760.66,0.00028767,5]
[381487091,1756230761587,-400.0,0.00028767,5]
[381487092,1756230761597,-400.0,0.00028767,5]
[381487093,1756230761607,-980.95,0.00028767,5]
[381487094,1756230761617,-400.0,0.00028767,5]
[381487095,1756230761627,-400.0,0.00028767,5]
[381487096,1756230761636,-886.79,0.00028767,5]
[381487097,1756230761647,-400.0,0.00028767,5]
[381487098,1756230761658,-400.0,0.00028767,5]
[381487099,1756230761669,-1351.73,0.00028767,5]
[381487100,1756230761681,-400.0,0.00028767,5]
[381487101,1756230761692,-402.4764871,0.00028767,5]
[381487102,1756230761703,-400.0,0.00028767,5]
[381487103,1756230761713,-332.13828381,0.00028767,5]
[381487104,1756230761722,-457.01,0.00028767,5]
[381487105,1756230761733,-400.0,0.00028767,5]
[381487106,1756230761742,-933.82,0.00028767,5]
[381487107,1756230761753,-1161.18,0.00028767,5]
[381487108,1756230761763,-400.0,0.00028767,5]
[381487109,1756230761773,-504.23,0.00028767,5]
[381487110,1756230761783,-763.04,0.00028767,5]
[381487111,1756230761792,-626.61,0.00028767,5]
[381487112,1756230761804,-1778.67,0.00028767,5]
[381487113,1756230761814,-1427.19,0.00028767,5]
[381487114,1756230761823,-474.9118387,0.00028767,5]
[381487115,1756230761835,-595.35,0.00028767,5]
[381487116,1756230761846,-400.0,0.00028767,5]
[381487117,1756230761856,-1212.24,0.00028767,5]
[381487118,1756230761867,-659.0,0.00028767,5]
[381487119,1756230761877,-400.0,0.00028767,2]
[381487120,1756230761888,-400.0,0.00028767,5]
[381487121,1756230761898,-1136.12,0.00028767,5]
[381487122,1756230761908,-400.0,0.00028767,5]
[381487123,1756230761919,-400.0,0.00028767,5]
[381487124,1756230761929,-400.0,0.00028767,5]
[381487125,1756230761940,-1388.02,0.00028767,5]
[381487126,1756230761950,-400.0,0.00028767,5]
[381487127,1756230761960,-851.42,0.00028767,5]
[381487128,1756230761969,-790.48,0.00028767,5]
[381487129,1756230761978,-424.81,0.00028767,5]
[381487130,1756230761988,-1031.7,0.00028767,5]
[381487131,1756230761998,-400.0,0.00028767,5]
[381487132,1756230762010,-978.35,0.00028767,5]
[381487133,1756230762019,-400.0,0.00028767,5]
[381487134,1756230762029,-400.0,0.00028767,5]
[381487135,1756230762039,-835.03,0.00028767,5]
[381487136,1756230762050,-400.0,0.00028767,5]
[381487137,1756230762060,-1052.63,0.00028767,5]
[381487138,1756230762072,-400.0,0.00028767,5]
[381487139,1756230762083,-686.76,0.00028767,5]
[381487140,1756230762093,-1326.59,0.00028767,5]
[381487141,1756230762103,-463.9,0.00028767,5]
[381487142,1756230762115,-441.77,0.00028767,5]
[381487143,1756230762125,-1026.11,0.00028767,5]
[381487144,1756230762135,-400.0,0.00028767,5]
[381487145,1756230762145,-400.0,0.00028767,5]
[381487146,1756230762155,-510.24,0.00028767,5]
[381487147,1756230762164,-400.0,0.00028767,5]
[381487148,1756230762175,-400.0,0.00028767,5]
[381487149,1756230762184,-400.0,0.00028767,5]
[381487150,1756230762194,-1032.18,0.00028767,5]
[381487151,1756230762204,-1025.85,0.00028767,5]
[381487152,1756230762215,-400.0,0.00028767,5]
[381487153,1756230762225,-682.58,0.00028767,5]
[381487154,1756230762235,-682.08,0.00028767,5]
[381487155,1756230762245,-400.0,0.00028767,5]
[381487156,1756230762256,-611.11,0.00028767,5]
[381487157,1756230762266,-507.58,0.00028767,5]
[381487158,1756230762276,-1988.35,0.00028767,5]
[381487159,1756230762287,-707.77,0.00028767,5]
[381487160,1756230762297,-671.23,0.00028767,5]
[381487161,1756230762307,-400.0,0.00028767,5]
[381487162,1756230762317,-400.0,0.00028767,5]
[381487163,1756230762328,-414.02,0.00028767,5]
[381487164,1756230762338,-1108.22,0.00028767,5]
[381487165,1756230762347,-620.36,0.00028767,5]
[381487166,1756230762357,-674.7,0.00028767,5]
[381487167,1756230762366,-1696.44,0.00028767,5]
[381487168,1756230762376,-400.0,0.00028767,5]
[381487169,1756230762386,-1262.19,0.00028767,5]
[381487170,1756230762395,-400.0,0.00028767,5]
[381487171,1756230762406,-1451.77,0.00028767,5]
[381487172,1756230762415,-400.0,0.00028767,5]
[381487173,1756230762424,-400.0,0.00028767,5]
[381487174,1756230762435,-838.64,0.00028767,5]
[381487175,1756230762444,-400.0,0.00028767,5]
[381487176,1756230762453,-1320.14,0.00028767,5]
[381487178,1756230762463,-1171.83,0.00028767,5]
[381487179,1756230762472,-400.0,0.00028767,5]
[381487180,1756230762483,-400.0,0.00028767,5]
[381487181,1756230762492,-1229.77,0.00028767,5]
[381487182,1756230762502,-1055.35,0.00028767,5]
[381487183,1756230762513,-400.0,0.00028767,5]
[381487184,1756230762523,-400.0,0.00028767,5]
[381487185,1756230762533,-490.51,0.00028767,5]
[381487186,1756230762542,-451.3,0.00028767,5]
[381487187,1756230762552,-654.35,0.00028767,5]
[381487188,1756230762562,-1305.09,0.00028767,5]
[381487189,1756230762574,-277.71005903,0.00028767,5]
[381487190,1756230762584,-400.0,0.00028767,5]
[381487191,1756230762594,-715.4,0.00028767,5]
[381487192,1756230762604,-1150.93,0.00028767,5]
[381487193,1756230762615,-486.06,0.00028767,5]
[381487194,1756230762625,-1447.76,0.00028767,5]
[381487195,1756230762635,-1190.31,0.00028767,5]
[381487196,1756230762645,-400.0,0.00028767,5]
[381487197,1756230762655,-1053.64,0.00028767,5]
[381487198,1756230762664,-1314.02,0.00028767,5]
[381487199,1756230762679,-737.44,0.00028767,5]
[381487200,1756230762688,-400.0,0.00028767,5]
[381487201,1756230762697,-710.08,0.00028767,5]
[381487202,1756230762707,-867.06,0.00028767,5]
[381487203,1756230762718,-400.0,0.00028767,5]
[381487204,1756230762728,-400.0,0.00028767,5]
[381487205,1756230762738,-2794.66,0.00028767,5]
[381487206,1756230762750,-518.85,0.00028767,5]
[381487207,1756230762761,-831.22,0.00028767,5]
[381487208,1756230762773,-522.78,0.00028767,5]
[381487209,1756230762783,-1002.86,0.00028767,5]
[381487210,1756230762794,-966.97,0.00028767,5]
[381487211,1756230762803,-400.0,0.00028767,5]
[381487212,1756230762813,-506.44,0.00028767,5]
[381487213,1756230762824,-777.45,0.00028767,5]
[381487214,1756230762835,-234.7190828,0.00028767,5]